Cogmind - Beta 15 @@@ ROGUE MODE // 2025.07.08 @ 10:28:36 Player: beans Result: Destroyed by G-47 Trooper with Particle Gun Performance ------------- Evolutions (2) 1000 Regions Visited (8) 1600 Robots Destroyed (75) 375 Value Destroyed (1814) 1814 Prototype IDs (24) 480 Alien Tech Used (0) 0 Bonus (144) 144 TOTAL SCORE: 5413 Bonus ------- Follower Combat Kills 25 Aligned with FarCom 300 Friendly Fire -181 Cogmind --------- Core Integrity 0/550 Matter 300/300 Energy 98/100 System Corruption 0% Temperature Cool (18) Movement Core (50) Location -8/Storage Parts ------- > --- POWER (2) -------- (None) > --- PROPULSION (2) --- (None) > --- UTILITY (3) ------ 0b10 Alert Chip > --- WEAPON (4) ------- (None) > --- INVENTORY (5) ---- Medium Matter Pod (100) Medium Matter Pod (100) Peak State ------------ > --- POWER ------------ Ion Engine Ion Engine > --- PROPULSION ------- Aluminum Leg Improved Aluminum Leg > --- UTILITY ---------- Medium Matter Pod Signal Interpreter 0b10 Alert Chip > --- WEAPON ----------- Pulse Rifle Heavy Particle Gun Heavy Particle Cannon High-powered Shotgun > --- INVENTORY -------- Medium Matter Pod Medium Matter Pod [Rating: 26] Favorites ----------- Power Ion Engine Engine Ion Engine Power Core Light Nuclear Core Propulsion Aluminum Leg Treads Light Treads Leg Aluminum Leg Utility Signal Interpreter Device Improved Heat Sink Storage Medium Matter Pod Processor Signal Interpreter Weapon Grenade Launcher Energy Gun Pulse Rifle Energy Cannon Heavy Particle Cannon Ballistic Gun High-powered Shotgun Ballistic Cannon Light Cannon Launcher Grenade Launcher Impact Weapon Great Maul Build | -11 -10 -10 -9 -9 -9 -8 -8 -8 ------- Run | Yrd Mat Min Mat Min Exi Min Mat Sto Slots Evolved 4 | . . . 2 . . . 2 . Power 1 | . . . . . . . 1 . Propulsion . | . . . . . . . . . Utility 1 | . . . 1 . . . . . Weapon 2 | . . . 1 . . . 1 . Parts Attached 29 | 3 2 4 4 1 3 3 6 3 Power 5 | 1 . 3 . . . . . 1 Engine 2 | 1 . 1 . . . . . . Core 3 | . . 2 . . . . . 1 Reactor . | . . . . . . . . . Propulsion 5 | 2 . . . 1 . 2 . . Treads 2 | 2 . . . . . . . . Leg 3 | . . . . 1 . 2 . . Wheel . | . . . . . . . . . Hover . | . . . . . . . . . Flight . | . . . . . . . . . Utility 5 | . . 1 3 . 1 . . . Device 1 | . . 1 . . . . . . Storage 2 | . . . 2 . . . . . Processor 2 | . . . 1 . 1 . . . Hackware . | . . . . . . . . . Protection . | . . . . . . . . . Artifact . | . . . . . . . . . Weapon 14 | . 2 . 1 . 2 1 6 2 Energy Gun 4 | . . . . . . . 3 1 Energy Cannon 1 | . . . . . . . 1 . Ballistic Gun 2 | . . . . . . . 2 . Ballistic Cannon 2 | . . . . . 1 1 . . Launcher 4 | . 2 . 1 . 1 . . . Special Weapon . | . . . . . . . . . Impact Weapon 1 | . . . . . . . . 1 Slashing Weapon . | . . . . . . . . . Piercing Weapon . | . . . . . . . . . Special Melee Weapon . | . . . . . . . . . Unidentified Prototypes 1 | . . . . . . . 1 . Parts Lost 24 | . . 4 2 1 . 4 1 12 Power 5 | . . 1 . 1 . . . 3 Propulsion 5 | . . 1 1 . . 1 . 2 Utility 3 | . . 1 . . . . . 2 Weapon 11 | . . 1 1 . . 3 1 5 Highest Loss Streak 4 | . . 2 1 1 . 4 1 3 To Critical Strikes . | . . . . . . . . . Average Backups 2 | . . 3 3 4 4 3 2 2 Power . | . . 1 2 2 1 1 . . Propulsion . | . . . . . . . . . Utility 1 | . . . . 1 1 2 2 2 Weapon . | . . 1 1 1 1 . . . Tool/Special . | . . . . . . . . . Unused Backups 2 | . . . . . . . . 2 Power . | . . . . . . . . . Propulsion . | . . . . . . . . . Utility 1 | . . . . . . . . 1 Weapon 1 | . . . . . . . . 1 Tool/Special . | . . . . . . . . . Average Slot Usage (%) 66 | . 58 61 29 51 66 76 87 48 Engine 8 | . 14 2 . . 7 11 17 1 Core 2 | . . 9 11 3 . . . 2 Treads 6 | . 28 23 3 . . . . . Leg 8 | . . . . 4 11 12 18 4 Storage 7 | . . . 1 22 14 11 9 7 Processor 13 | . . . 5 11 18 22 18 18 Energy Gun 3 | . . . . . . . 13 3 Ballistic Gun 2 | . . . . . . . 6 5 Ballistic Cannon 3 | . . . . . 4 11 4 . Launcher 8 | . 15 23 8 11 11 8 . . Peak Build Rating 26 | 3 5 10 8 8 12 16 26 21 Average Rating 11 | 2 4 5 5 6 9 12 20 13 On Entrance 8 | . 3 5 5 8 6 12 13 21 Naked Turns . | . . . . . . . . . Heaviest Build 27 | 5 11 12 13 13 13 16 27 21 Greatest Support 40 | 40 40 40 20 10 10 25 23 23 Greatest Overweight (x) 4 | . . . 4 4 1 1 1 2 Average Overweight (x) . | . . . 1 . . . . . Largest Inventory Capacity 5 | 5 5 5 5 5 5 5 5 5 Average Capacity 5 | 5 5 5 5 5 5 5 5 5 Most Carried 5 | 2 2 4 5 5 5 5 4 3 Average Carried 2 | . . 3 3 4 4 3 2 2 Final Capacity 5 | 5 5 5 5 5 5 5 5 5 Final Carried 5 | . 1 4 4 5 4 3 3 2 Class Distribution -------------------- 81% | Mutant 18% | Skirmisher Dominant Class ---------------- Mutant | -10/Materials Mutant | -10/Mines Mutant | -9/Materials Mutant | -9/Mines Mutant | -9/Exiles Mutant | -8/Mines Skirmisher | -8/Materials Mutant | -8/Storage Resources | -11 -10 -10 -9 -9 -9 -8 -8 -8 ----------- Run | Yrd Mat Min Mat Min Exi Min Mat Sto Matter Collected 1964 | 192 244 324 21 182 . 315 113 573 Remotely . | . . . . . . . . . Salvage Created 2047 | . 357 338 91 23 . 262 335 641 Parts 128 | . 23 26 11 3 . 13 23 29 Haulers Intercepted 4 | . 1 . 1 . . . 1 1 Recyclers Shooed 5 | . . . . . . . 3 2 Parts Field Recycled . | . . . . . . . . . Retrieved Matter . | . . . . . . . . . Parts Self-Destructed . | . . . . . . . . . Prevented . | . . . . . . . . . Kills | -11 -10 -10 -9 -9 -9 -8 -8 -8 ------- Run | Yrd Mat Min Mat Min Exi Min Mat Sto Combat Hostiles Destroyed 53 | . 5 19 3 2 . 6 5 13 Melee 4 | . . . . . . . . 4 Guns 9 | . . . . . . . 4 5 Cannons 4 | . . . . . . 3 1 . AOE 32 | . 5 19 3 2 . 3 . . Classes Destroyed 11 | . 8 1 . . . 1 1 . Worker 2 | . 1 . . . . 1 . . Builder 6 | . 1 . 1 . . . 2 2 Hauler 4 | . 1 . 1 . . . 1 1 Recycler 8 | . 4 1 . . . 1 1 1 Operator 3 | . 2 . . . . . 1 . Watcher 4 | . 2 . 2 . . . . . Swarmer 17 | . 3 6 3 2 . . . 3 Grunt 22 | . 2 7 . . . 5 3 5 Duelist 1 | . . . . . . 1 . . Sentry 7 | . . . . . . . 2 5 Assembled 6 | . . 6 . . . . . . Thug 1 | . . . 1 . . . . . Best Kill Streak 6 | . 5 6 6 2 . 5 2 4 Combat Bots Only 6 | . 3 6 3 2 . 3 2 4 Max Kills in Single Turn 4 | . 4 3 2 2 . 2 1 1 Gunslinging . | . . . . . . . . . Exploded 3 | . 3 3 1 2 . 2 . . Melee 1 | . . . . . . . . 1 Uniques/NPCs Destroyed . | . . . . . . . . . Combat | -11 -10 -10 -9 -9 -9 -8 -8 -8 -------- Run | Yrd Mat Min Mat Min Exi Min Mat Sto Hostile Shots Fired 208 | . 9 13 6 5 . 36 40 99 Missed 65 | . 2 5 3 2 . 19 10 24 Hits 143 | . 7 8 3 3 . 17 30 75 Melee 5 | . . 1 . . . 4 . . Projectile 138 | . 7 7 3 3 . 13 30 75 AOE 1 | . . . . . . . . 1 Critical Strikes 5 | . . . . . . 1 1 3 Damage Taken 2635 | . 166 309 116 87 . 379 452 1126 Core 804 | . 46 40 33 12 . 112 73 488 Absorbed by Shields . | . . . . . . . . . Core Remaining (%) 75 | 100 . 65 . . . 60 . . Volleys Fired 173 | . 24 15 13 2 . 23 61 35 Largest 4 | . 1 2 1 1 . 3 4 2 Hottest 173 | . 30 60 33 33 . 90 173 48 Shots Fired 243 | . 24 25 13 2 . 37 91 51 Gun 118 | . . . . . . . 67 51 Cannon 53 | . . . . . . 29 24 . Launcher 72 | . 24 25 13 2 . 8 . . Special . | . . . . . . . . . Kinetic 140 | . . . . . . 29 63 48 Thermal 28 | . . . . . . . 28 . Explosive 72 | . 24 25 13 2 . 8 . . Electromagnetic 3 | . . . . . . . . 3 Robot Hit Streak 10 | . 4 7 9 10 . 9 7 8 Robot Miss Streak 7 | . . . . . . 2 7 3 Penetration Max . | . . . . . . . . . Secondary Targets 1 | . . . . . . . . 1 Max Gunslinging Chain 1 | . . . . . . . . 1 Shots Hit Robots 125 | . 4 3 2 1 . 19 46 50 Core Hits 117 | . 23 28 11 2 . 18 17 18 Critical Kills 1 | . . . . . . . . 1 Critical Parts Destroyed 5 | . . . . . . . . 5 Critical Strikes 10 | . . . . . . 2 2 6 Burn 1 | . . . . . . . 1 . Blast 3 | . . . . . . 2 1 . Smash 6 | . . . . . . . . 6 Melee Attacks 20 | . . . . . . . . 20 Impact 20 | . . . . . . . . 20 Slashing . | . . . . . . . . . Piercing . | . . . . . . . . . Sneak Attacks 2 | . . . . . . . . 2 Combat Hostiles . | . . . . . . . . . Follow-up Attacks . | . . . . . . . . . Damage Inflicted 5613 | . 933 996 554 138 . 668 931 1393 Guns 1352 | . . . . . . . 727 625 Cannons 552 | . . . . . . 348 204 . Explosions 2941 | . 933 996 554 138 . 320 . . Melee 764 | . . . . . . . . 764 Ramming 4 | . . . . . . . . 4 Kinetic 1653 | . . . . . . 348 707 598 Thermal 224 | . . . . . . . 224 . Explosive 2941 | . 933 996 554 138 . 320 . . Electromagnetic 27 | . . . . . . . . 27 Impact 764 | . . . . . . . . 764 Slashing . | . . . . . . . . . Piercing . | . . . . . . . . . Highest Corruption 1 | . . 1 . . . . . . Average Corruption 1 | . . 1 . . . . . . Corruption Purged . | . . . . . . . . . Corruption Blocked . | . . . . . . . . . Overload Shots . | . . . . . . . . . Overflow Damage 465 | . 13 58 45 2 . . . 347 Projectiles . | . . . . . . . . . Explosions 118 | . 13 58 45 2 . . . . Melee 347 | . . . . . . . . 347 Knockbacks 8 | . . . . . . 5 1 2 Impact 2 | . . . . . . . . 2 Kinetic 6 | . . . . . . 5 1 . Secondary . | . . . . . . . . . Self-Inflicted Damage 450 | . 101 200 92 32 . 24 . 1 Shots 16 | . 5 6 3 1 . 1 . . Rammed 2 | . . . . . . . . 2 Targets Rammed 2 | . . . . . . . . 2 Kicked . | . . . . . . . . . Crushed . | . . . . . . . . . Highest Temperature 417 | . 4 21 . . . 67 417 14 Average Temperature 96 | . 4 9 . . . 26 129 4 Received Heat Transfer 918 | . 18 45 6 21 . 117 225 486 Effects 4 | . . . . . . . 4 . Shutdowns 1 | . . . . . . . 1 . Energy Bleed 2 | . . . . . . . 2 . Interference 1 | . . . . . . . 1 . Siege Activations . | . . . . . . . . . Martial Activations . | . . . . . . . . . Shielding Activations . | . . . . . . . . . Robots Disrupted . | . . . . . . . . . Combat Hostiles . | . . . . . . . . . Robots Corrupted 4 | . . . . . . . . 4 Combat Hostiles 4 | . . . . . . . . 4 Parts Fried 8 | . . . . . . . . 8 Impact Corruptions 11 | . . . . . . . . 11 Robots Melted . | . . . . . . . . . Combat Hostiles . | . . . . . . . . . Parts Melted . | . . . . . . . . . Heat Transferred 481 | . . . . . . . 481 . Parts Sabotaged . | . . . . . . . . . Parts Stolen . | . . . . . . . . . Parts Stripped . | . . . . . . . . . Power Chain Reactions . | . . . . . . . . . Alert | -11 -10 -10 -9 -9 -9 -8 -8 -8 ------- Run | Yrd Mat Min Mat Min Exi Min Mat Sto Maximum Alert Level 1 | . 1 1 . . . . . . Low Security (%) 92 | 100 95 58 100 100 . 100 100 100 Level 1 7 | . 4 41 . . . . . . Level 2 . | . . . . . . . . . Level 3 . | . . . . . . . . . Level 4 . | . . . . . . . . . Level 5 . | . . . . . . . . . High Security . | . . . . . . . . . Max Security . | . . . . . . . . . Peak Influence 246 | . 206 246 182 98 . 83 44 104 Initial 63 | . . 56 63 58 . . 10 . Average 62 | . 115 188 135 58 . 16 8 20 Influence Increases 1718 | . 349 449 199 70 . 163 169 319 Destroy 0b10 Robot/C 864 | . 100 260 80 40 . 96 80 208 Destroy 0b10 Robot/NC 124 | . 55 5 20 . . 8 20 16 Destroy Leader 184 | . 26 50 16 . . 16 18 58 Allied During Kill 9 | . . 4 5 . . . . . Disable Machine 159 | . 90 15 15 15 . . 12 12 Destroy Structure 318 | . 78 115 63 15 . 43 3 1 Partial Spotted 12 | . . . . . . . 12 . Lose Combat Pursuer 48 | . . . . . . . 24 24 Influence Decreases 1658 | . 204 431 210 134 88 136 194 261 Entered New Map 390 | . . 89 100 94 88 . 17 2 Time Decay 1088 | . 204 302 90 30 . 96 177 189 Lost Part 180 | . . 40 20 10 . 40 . 70 Squads Dispatched 2 | . . . . . . . 1 1 Investigation . | . . . . . . . . . Extermination . | . . . . . . . . . Reinforcement 1 | . . . . . . . 1 . Assault . | . . . . . . . . . Garrison 1 | . . . . . . . . 1 Intercept . | . . . . . . . . . Searches Triggered . | . . . . . . . . . Construction Impeded . | . . . . . . . . . Haulers Reinforced . | . . . . . . . . . Active Scanning Responses . | . . . . . . . . . Cargo Convoy Interrupts . | . . . . . . . . . Stealth | -11 -10 -10 -9 -9 -9 -8 -8 -8 --------- Run | Yrd Mat Min Mat Min Exi Min Mat Sto Distress Signals 6 | . . . . . . . 4 2 Communications Jammed . | . . . . . . . . . Distress Signals . | . . . . . . . . . Times Spotted 75 | . 10 15 5 5 . 6 13 21 Peak Tracking Total 6 | . 3 5 5 3 . 3 4 6 Tactical Retreats 3 | . . . . . . . 2 1 Traps | -11 -10 -10 -9 -9 -9 -8 -8 -8 ------- Run | Yrd Mat Min Mat Min Exi Min Mat Sto Traps Triggered 1 | . . . . . . . . 1 Indirectly . | . . . . . . . . . Trap Hack Attempts . | . . . . . . . . . Triggered . | . . . . . . . . . Disarmed . | . . . . . . . . . Reprogrammed . | . . . . . . . . . Reused . | . . . . . . . . . Traps Extracted . | . . . . . . . . . Installed . | . . . . . . . . . Triggered . | . . . . . . . . . Machines | -11 -10 -10 -9 -9 -9 -8 -8 -8 ---------- Run | Yrd Mat Min Mat Min Exi Min Mat Sto Machines Disabled 11 | . 6 1 1 1 . . 1 1 Max in Single Turn 4 | . 4 1 1 1 . . 1 1 Machines Repaired . | . . . . . . . . . Machines Dismantled . | . . . . . . . . . Machines Sabotaged . | . . . . . . . . . Overloaded Fab Kills . | . . . . . . . . . Hacking | -11 -10 -10 -9 -9 -9 -8 -8 -8 --------- Run | Yrd Mat Min Mat Min Exi Min Mat Sto Machines Accessed 3 | . 1 . . . 1 . 1 . Terminals 1 | . 1 . . . . . . . Fabricators . | . . . . . . . . . Repair Stations . | . . . . . . . . . Recycling Units . | . . . . . . . . . Scanalyzers 1 | . . . . . . . 1 . Garrison Access . | . . . . . . . . . Total Hacks 5 | . 2 . . . 1 . 2 . Successful 5 | . 2 . . . 1 . 2 . Failed . | . . . . . . . . . Catastrophic . | . . . . . . . . . Database Lockouts . | . . . . . . . . . Manual 1 | . . . . . 1 . . . Terminals 2 | . 2 . . . . . . . Fabricators . | . . . . . . . . . Repair Stations . | . . . . . . . . . Recycling Units . | . . . . . . . . . Scanalyzers 2 | . . . . . . . 2 . Garrison Access . | . . . . . . . . . Terminal Hacks 3 | . 2 . . . 1 . . . Record 2 | . 2 . . . . . . . Proto ID Catalog 1 | . . . . . 1 . . . Fabricator Hacks . | . . . . . . . . . Repair Station Hacks . | . . . . . . . . . Recycling Unit Hacks . | . . . . . . . . . Scanalyzer 2 | . . . . . . . 2 . Insert Component 1 | . . . . . . . 1 . Analyze 1 | . . . . . . . 1 . Garrison Access Hacks . | . . . . . . . . . Unauthorized Hacks . | . . . . . . . . . Terminals . | . . . . . . . . . Fabricators . | . . . . . . . . . Repair Stations . | . . . . . . . . . Recycling Units . | . . . . . . . . . Scanalyzers . | . . . . . . . . . Garrison Access . | . . . . . . . . . Data Cores Recovered 2 | . 2 . . . . . . . Used 1 | . 1 . . . . . . . Hacking Detections . | . . . . . . . . . Full Trace Events . | . . . . . . . . . Feedback Events . | . . . . . . . . . Feedback Blocked . | . . . . . . . . . Robot Schematics Acquired . | . . . . . . . . . Robots Built . | . . . . . . . . . Authchips . | . . . . . . . . . Time . | . . . . . . . . . Total Robot Build Rating . | . . . . . . . . . Part Schematics Acquired 1 | . . . . . . . 1 . Parts Built . | . . . . . . . . . Authchips . | . . . . . . . . . Time . | . . . . . . . . . Total Part Build Rating . | . . . . . . . . . Parts Repaired . | . . . . . . . . . Time . | . . . . . . . . . Parts Recycled . | . . . . . . . . . Recycled Matter . | . . . . . . . . . Retrieved Matter . | . . . . . . . . . Retrieved Components . | . . . . . . . . . Parts Scanalyzed 1 | . . . . . . . 1 . Part Schematics Acquired 1 | . . . . . . . 1 . Parts Damaged . | . . . . . . . . . Bothacking | -11 -10 -10 -9 -9 -9 -8 -8 -8 ------------ Run | Yrd Mat Min Mat Min Exi Min Mat Sto Used RIF Installer . | . . . . . . . . . Robots Hacked . | . . . . . . . . . Non-combat . | . . . . . . . . . Combat . | . . . . . . . . . Robot Hacks Applied . | . . . . . . . . . Relay Couplers Released . | . . . . . . . . . Fabnet Peak Effective % . | . . . . . . . . . Robots Rewired . | . . . . . . . . . Allies Hacked . | . . . . . . . . . Hacks Repelled . | . . . . . . . . . Allies | -11 -10 -10 -9 -9 -9 -8 -8 -8 -------- Run | Yrd Mat Min Mat Min Exi Min Mat Sto Total Allies 1 | . . 1 . . . . . . Largest Group 1 | . . 1 1 . . . . . Highest-Rated Group 31 | . . 31 31 . . . . . Highest-Rated Ally 31 | . . 31 31 . . . . . Total Orders . | . . . . . . . . . Ally Attacks 10 | . . 6 4 . . . . . Total Damage 86 | . . 64 22 . . . . . Kills 4 | . . 3 1 . . . . . Allies Corrupted . | . . . . . . . . . Allies Melted . | . . . . . . . . . Intel | -11 -10 -10 -9 -9 -9 -8 -8 -8 ------- Run | Yrd Mat Min Mat Min Exi Min Mat Sto Active Infowar (turns) . | . . . . . . . . . Robot Analysis Total . | . . . . . . . . . Derelict Logs Recovered 1 | . . 1 . . . . . . Drone Launches . | . . . . . . . . . Drone Recoveries . | . . . . . . . . . Exploration | -11 -10 -10 -9 -9 -9 -8 -8 -8 ------------- Run | Yrd Mat Min Mat Min Exi Min Mat Sto Turns Passed 4417 | 57 443 662 198 67 488 953 819 730 Spaces Moved 2155 | 37 237 370 117 41 341 410 319 283 Core 290 | 6 . . 86 15 . . . 183 Treads 669 | 31 237 370 31 . . . . . Legs 1196 | . . . . 26 341 410 319 100 Wheels . | . . . . . . . . . Hover . | . . . . . . . . . Flight . | . . . . . . . . . Fastest Speed 50 | 50 160 160 100 120 120 120 120 50 Average Speed 146 | 142 160 160 141 143 141 162 127 121 Slowest Speed 250 | 160 160 160 250 250 190 190 190 190 Overloaded Moves . | . . . . . . . . . Propulsion Burnouts . | . . . . . . . . . Robots Hopped . | . . . . . . . . . Potential Cave-ins . | . . . . . . . . . Cave-ins Triggered . | . . . . . . . . . Exploration Rate (%) 38 | 5 49 70 13 13 69 64 20 43 Regions Visited 8 Branch Regions 5 Pre-discovered Areas . | . . . . . . . . . Known Exits Taken 5 | . . . 1 1 1 1 1 . Unknown Exits Taken 3 | 1 1 1 . . . . . . Scrap Searched 4 | . . 1 . 2 . 1 . . Spaces Dug 7 | . 7 . . . . . . . Terrain Destroyed 395 | . 81 153 81 18 . 60 2 . Melee . | . . . . . . . . . Projectile 2 | . . . . . . . 2 . AOE 393 | . 81 153 81 18 . 60 . . Terrain Rammed . | . . . . . . . . . Walls Destroyed . | . . . . . . . . . Machines Disabled . | . . . . . . . . . Actions | -11 -10 -10 -9 -9 -9 -8 -8 -8 --------- Run | Yrd Mat Min Mat Min Exi Min Mat Sto Total 3155 | 42 277 414 137 47 347 662 652 577 Wait 743 | . 12 21 . 3 . 221 256 230 Move 2147 | 36 236 369 116 40 340 409 318 283 Hop . | . . . . . . . . . Pick Up 32 | 3 3 5 4 1 2 4 7 3 Fast Attach 1 | . . . . 1 . . . . Attach 29 | 3 2 2 4 . 3 5 7 3 Detach . | . . . . . . . . . Swap 3 | . . 2 . . 1 . . . Drop 5 | . . . . . 1 . 3 1 Fire 173 | . 24 15 13 2 . 23 61 35 Melee 20 | . . . . . . . . 20 Ram 2 | . . . . . . . . 2 Kick . | . . . . . . . . . Crush . | . . . . . . . . . Escape Stasis . | . . . . . . . . . Rewire . | . . . . . . . . . Trap . | . . . . . . . . . Miscellaneous . | . . . . . . . . . Route ------- -11/Scrapyard -10/Materials (discovered 2 exits: [*Mat] / [*Min]) -10/Mines (discovered 2 exits: [*Mat] / [*Sub]) -9/Materials -9/Mines -9/Exiles (discovered 2 exits: *Min x2) -8/Mines -8/Materials -8/Storage History --------- Turn | Location | Event 2 | -11/Scrapyard | Met Revision 17 4 | -11/Scrapyard | Discovered new exit (range 15) 58 | -11/Scrapyard | Entered Materials 191 | -10/Materials | Discovered new exit (range 15) 309 | -10/Materials | Build established: Mutant 469 | -10/Materials | Discovered new exit (range 16) 501 | -10/Materials | Entered Mines 559 | -10/Mines | Found a hidden stash of uninstalled traps 749 | -10/Mines | Received a Rocket Launcher from a helpful Derelict 802 | -10/Mines | Discovered new exit (range 14) 838 | -10/Mines | Escorted by a lone wolf Derelict 909 | -10/Mines | Assembled infested the area 914 | -10/Mines | Assisted by a Guerilla fighting off Assembled 968 | -10/Mines | Discovered new exit (range 7) 1163 | -10/Mines | Entered Materials 1163 | -9/Materials | Accompanied by 1 ally 1163 | -9/Materials | Evolved 2 slots: Utility x1, Weapon x1 1164 | -9/Materials | Identified exit to Mines 1305 | -9/Materials | Met 8R-AWN 1361 | -9/Materials | Entered Mines 1364 | -9/Mines | Followed 8R-AWN into the Mines 1424 | -9/Mines | Discovered new exit (range 5) 1427 | -9/Mines | Identified exit to Exiles 1428 | -9/Mines | Entered Exiles 1429 | -9/Exiles | Identified exit to Mines 1458 | -9/Exiles | Welcomed by 8R-AWN 1478 | -9/Exiles | Met EX-HEX 1519 | -9/Exiles | Met EX-BIN 1542 | -9/Exiles | Aligned with FarCom system 1543 | -9/Exiles | Given EX-Vault access code 1572 | -9/Exiles | Opened EX-Vault 1580 | -9/Exiles | Found 0b10 Alert Chip 1605 | -9/Exiles | Warned to stay clear of 0b10 Research branches 1643 | -9/Exiles | Met EX-DEC 1712 | -9/Exiles | Discovered exit to Mines (range 14) 1916 | -9/Exiles | Left Exiles lab with 0b10 Alert Chip 1916 | -9/Exiles | Entered Mines 2637 | -8/Mines | Discovered new exit (range 16) 2694 | -8/Mines | Lost 4 parts (1n3w) 2742 | -8/Mines | Identified exit to Materials 2869 | -8/Mines | Entered Materials 2869 | -8/Materials | Evolved 2 slots: Power x1, Weapon x1 3413 | -8/Materials | Build established: Skirmisher 3575 | -8/Materials | Discovered new exit (range 12) 3628 | -8/Materials | Identified exit to Storage 3688 | -8/Materials | Entered Storage 3773 | -8/Storage | Lost 3 parts (2p1w) 3975 | -8/Storage | Core integrity fell below 50% 3996 | -8/Storage | Lost 3 parts (1p1n1w) 4045 | -8/Storage | Build established: Mutant 4105 | -8/Storage | Garrison activated, responded to threat 4300 | -8/Storage | Core integrity fell below 20% 4418 | -8/Storage | Destroyed by G-47 Trooper with Particle Gun Last Messages --------------- Acquired 12 matter. G-47 Trooper suffers critical hit (Smash). Destroyed Lgt. Nuclear Core. G-47 Trooper system corrupted by crushing effect. G-47 Trooper system terminally corrupted. Imp. Heat Sink fried. Aluminum Leg fried. Particle Gun fried. Acquired 58 matter. Sneak attack on R-06 Scavenger. R-06 Scavenger knocked back. G-47 Trooper suffers critical hit (Smash). Destroyed Imp. Heat Sink. G-47 Trooper system corrupted by crushing effect. G-47 Trooper destroyed. Great Maul destroyed. Slammed into G-47 Trooper. Signal Interpreter destroyed. Map ----- +----------------------------------------------------+ | ?????????????????????????????????????????????????? | | ?????????????????????????????????????????????????? | | ?????????????????????????????????????????????????? | | ??????######T????????????????????????????????????? | | ??????# ???????????????????????????????????? | | ???#### """ #?????????????????????????????????? | | ????""" """ #?????????????????????????????????? | | ????"R """ #?????????????????????????????????? | | ?????"" #?????????????????????????????????? | | ?????## """ #?????????????????????????????????? | | ?????# """ #????????+?????????Y??????????????? | | ??????# """ #???????? ????????????????????????? | | ??????# #???????? ????????????????????????? | | ##+########+############ #???????????????????????? | | ! ! =/ #??????????????????????? | | ! * * !]* +??????????????????????? | | ! #??????????????????????? | | #+#########+##### #??????????????????????? | | ??# # #??????????????????????? | | "" # =+ ? #??????????????????????? | | ??" # *%#????#### #??????????????????????? | | ???" # [#???????#r#??????????????????????? | | ???? # #???????# #??????????????????????? | | ????? # ! / #?????Y?# #??????????????????????? | | ????? # #???????# #??????????????????????? | | ??????# !!g #???????#@#??????????????????????? | | ???#+########+###???????# #??????????????????????? | | ???# #??????# #???????? # #???Y??????????????????? | | ???# #??????# #???????? # #??????????????????????? | | ##?# #??????#%#??????? # #???????????w??????????? | | "###[########*########+## #??????????????????????? | | + !% ^ #??????????????????????? | | " # ############## #??????????????????????? | | " # #????????????# #??????????????????????? | | " + #????????#####+## #??????????????????????? | | #+######???#= # #########??????????????? | | # #???# # gg#[ #??????????????? | | #### #???# + %/* """ #??????????????? | | ???# ! #???#! ] ###### """ #??????????????? | | ???#[ ! #???# #????# ! """ #??????????????? | | ???# #???# ![ #????# #??????????????? | | ???# ! #???########?????########??????????????? | | ???########??????????????????????????????????????? | | | | | | | | | | | | | | | +----------------------------------------------------+ Best States ------------- Heat Dissipation 39 Energy Generation 15 Energy Capacity 400 Matter Stores 400 Matter Capacity 500 Sight Range 16 Terrain Scan Density 10 Evasion (%) 55 Recoil Reduction 2 Item Schematics ----------------- Hpw. Shotgun | -8/Materials | Scanalyzed Robot Schematics ------------------ None Fabricated ------------ Nothing Repaired ---------- Nothing Alien Tech Used ----------------- None Achievements -------------- None Challenges ------------ None Game ------ Seed TimingVisualNetwork Manual? 0 Play Time 00:29:19 Cumulative 43.1 hours Start 2025.07.08 @ 10:01:43 End 2025.07.08 @ 10:28:36 Sessions 1 Manual Loads 0 Difficulty Rogue Special Mode None Game No. 201 Rogue 201 Adventurer 0 Explorer 0 Win Type - Total 0 Types 0/0/0/0/0/0/0/0/0/0 Lore% 32 Gallery% 25 Achievement% 22 Wizard Run 0 Options --------- Layout 2 ASCII 0 Keyboard 0 Movement Mouse Keybinds 0 Fullscreen 1 Font 24/Smallcaps Map View 50x44 Zoom Use 0% Tactical HUD 0 Map Filters NONE Filters NONE Steam 1 RUN: 7a3dbc16-8fe7-4192-b84e-fee094494a06